[Event "POL-chT 2nd League Juniors 2020"]
[Site "Sypniewo"]
[Date "2020.10.26"]
[Round "5.20"]
[White "Wojtasik, Szymon"]
[Black "Szuber, Dawid"]
[Result "1/2-1/2"]
[ECO "B32"]
[WhiteElo "1380"]
[BlackElo "1496"]
[Annotator "NA RC"]
[PlyCount "127"]
[EventDate "2020.10.23"]
[EventType "team-tourn"]
[EventCountry "POL"]
[SourceTitle "playchess.com"]
[Source "ChessBase"]
[SourceQuality "1"]
[TimeControl "5400+30"]

1. e4 {[%emt 0:00:00]} c5 {[%emt 0:00:00]} 2. Nf3 {[%emt 0:00:00]} Nc6 {[%emt 0:00:00]} 3. d4 {[%emt 0:00:00]} cxd4 {[%emt 0:00:00]} 4. Nxd4 {[%emt 0:00:00]} d5 {[%emt 0:00:02]} 5. Bb5 {[%emt 0:00:29]} dxe4 {[%emt 0:00:51]} 6. Nxc6 {[%emt 0:00:42]} Qxd1+ {[%emt 0:00:24]} 7. Kxd1 {[%emt 0:00:02]} a6 {[%emt 0:01:29]} 8. Ba4 {[%emt 0:02:44]} Bd7 {[%emt 0:01:47]} 9. Nc3 {[%emt 0:01:16]} Bxc6 {[%emt 0:00:32]} 10. Bxc6+ {[%emt 0:00:06]} bxc6 {[%emt 0:00:04]} 11. Nxe4 {[%emt 0:00:22]} e5 {[%emt 0:00:24]} 12. Ke2 {[%emt 0:03:53]} f5 {[%emt 0:12:48]} 13. Nd2 {[%emt 0:00:06]} Bd6 {[%emt 0:06:21]} 14. Nc4 {[%emt 0:02:52]} Bc7 {[%emt 0:00:35]} 15. b3 {[%emt 0:00:03]} Nf6 {[%emt 0:02:53]} 16. Ba3 {[%emt 0:49:59]} Rd8 {[%emt 0:06:15]} 17. Rad1 {[%emt 0:07:33]} Rxd1 {[%emt 0:02:28]} 18. Rxd1 {[%emt 0:01:05]} Nd5 {[%emt 0:01:17]} 19. Bb2 {[%emt 0:03:00]} Kf7 {[%emt 0:14:06]} 20. Kf1 {[%emt 0:11:15]} Re8 {[%emt 0:03:02]} 21. g3 {[%emt 0:12:35]} g5 {[%emt 0:04:05]} 22. Ne3 {[%emt 0:02:13]} Nxe3+ {[%emt 0:01:13]} 23. fxe3 {[%emt 0:00:01]} Ke6 {[%emt 0:00:22]} 24. Ke2 {[%emt 0:00:53]} h5 {[%emt 0:04:01]} 25. Rd3 {[%emt 0:00:47]} h4 {[%emt 0:13:54]} 26. gxh4 {[%emt 0:00:31]} gxh4 {[%emt 0:04:39]} 27. Rc3 {[%emt 0:00:14]} Kd7 {[%emt 0:03:18]} 28. Rd3+ {[%emt 0:00:44]} Kc8 {[%emt 0:04:23]} 29. Rd1 {[%emt 0:00:32]} Rg8 {[%emt 0:11:01]} 30. Rf1 {[%emt 0:00:24]} Rg5 {[%emt 0:00:02]} 31. e4 {[%emt 0:00:35]} f4 {[%emt 0:00:39]} 32. Kf3 {[%emt 0:00:14]} h3 {[%emt 0:00:47]} 33. Rf2 {[%emt 0:00:44]} Bb6 {[%emt 0:01:20]} 34. Re2 {[%emt 0:00:23]} Kd7 {[%emt 0:01:04]} 35. b4 {[%emt 0:00:30]} Ke6 {[%emt 0:00:48]} 36. c4 {[%emt 0:00:14]} Be3 {[%emt 0:00:30]} 37. Bc3 {[%emt 0:00:55]} Rg1 {[%emt 0:00:30]} 38. Bd2 {[%emt 0:00:31]} Bxd2 {[%emt 0:00:27]} 39. Rxd2 {[%emt 0:00:00]} Rb1 {[%emt 0:00:02]} 40. c5 {[%emt 0:00:45]} Rxb4 {[%emt 0:00:57]} 41. Kg4 {[%emt 0:00:35]} Rxe4 {[%emt 0:00:30]} 42. Rd6+ {[%emt 0:00:21]} Ke7 {[%emt 0:00:18]} 43. Kxh3 {[%emt 0:00:03]} Ra4 {[%emt 0:00:30]} 44. Kg4 {[%emt 0:01:03]} Rxa2 {[%emt 0:00:23]} 45. h4 {[%emt 0:00:02]} Rg2+ {[%emt 0:00:38]} 46. Kf3 {[%emt 0:00:55]} Rg3+ {[%emt 0:00:15]} 47. Kf2 {[%emt 0:00:10]} Rh3 {[%emt 0:00:52]} 48. Rxc6 {[%emt 0:00:26]} Rxh4 49. Rxa6 {[%emt 0:00:21]} Rh2+ {[%emt 0:01:00]} 50. Kf3 {[%emt 0:00:56]} Rc2 {[%emt 0:00:11]} 51. Ra7+ {[%emt 0:00:51]} Ke6 {[%emt 0:00:40]} 52. Rc7 {[%emt 0:00:33]} Kd5 {[%emt 0:00:45]} 53. Rd7+ {[%emt 0:00:23]} Kc6 {[%emt 0:00:06]} 54. Rd8 {[%emt 0:00:26]} Rxc5 {[%emt 0:00:17]} 55. Ke4 {[%emt 0:00:28]} Kb5 {[%emt 0:01:01]} 56. Rd7 {[%emt 0:00:25]} Kc4 {[%emt 0:00:33]} 57. Rd8 {[%emt 0:00:10]} Kc3 {[%emt 0:00:15]} 58. Rd7 {[%emt 0:00:53]} Kc2 {[%emt 0:00:41]} 59. Rd8 {[%emt 0:00:39]} Kc3 {[%emt 0:00:27]} 60. Rd7 {[%emt 0:00:08]} Kc2 {[%emt 0:00:38]} 61. Rd8 {[%emt 0:00:26]} Rc3 {[%emt 0:00:26]} 62. Kxe5 {[%emt 0:00:21]} Rd3 {[%emt 0:00:41]} 63. Rxd3 {[%emt 0:00:04]} Kxd3 {[%emt 0:00:02]} 64. Kxf4 {[%emt 0:00:00]} 1/2-1/2

[Event "POL-chT 2nd League Juniors 2020"]
[Site "Sypniewo"]
[Date "2020.10.26"]
[Round "5.21"]
[White "Bochenek, Ryszard"]
[Black "Doroba, Ludwik"]
[Result "1-0"]
[ECO "A06"]
[WhiteElo "1445"]
[BlackElo "1330"]
[Annotator "NA RC"]
[PlyCount "54"]
[EventDate "2020.10.23"]
[EventType "team-tourn"]
[EventCountry "POL"]
[SourceTitle "playchess.com"]
[Source "ChessBase"]
[SourceQuality "1"]
[TimeControl "5400+30"]

1. Nf3 {[%emt 0:00:00]} d5 {[%emt 0:00:00]} 2. g3 {[%emt 0:00:00]} Nf6 {[%emt 0:01:05]} 3. Bg2 {[%emt 0:00:08]} c6 {[%emt 0:01:03]} 4. d3 {[%emt 0:00:28]} Bf5 {[%emt 0:01:28]} 5. O-O {[%emt 0:00:34]} e6 {[%emt 0:02:10]} 6. Nbd2 {[%emt 0:01:08]} h6 {[%emt 0:04:55]} 7. Re1 {[%emt 0:01:38]} Be7 {[%emt 0:01:38]} 8. c3 {[%emt 0:01:37]} Nbd7 {[%emt 0:02:23]} 9. e4 {[%emt 0:01:46]} dxe4 {[%emt 0:03:48]} 10. dxe4 {[%emt 0:00:30]} Bh7 {[%emt 0:05:09]} 11. b4 {[%emt 0:05:44]} a5 {[%emt 0:06:06]} 12. Qb3 {[%emt 0:03:39]} axb4 {[%emt 0:03:35]} 13. cxb4 {[%emt 0:00:47]} Qb6 {[%emt 0:04:12]} 14. Rb1 {[%emt 0:03:15]} O-O {[%emt 0:17:42]} 15. a3 {[%emt 0:07:41]} Ng4 {[%emt 0:12:05]} 16. Re2 {[%emt 0:01:17]} Nde5 {[%emt 0:04:23]} 17. Nxe5 {[%emt 0:05:36]} Nxe5 {[%emt 0:01:09]} 18. Bb2 {[%emt 0:02:41]} Qb5 {[%emt 0:01:54]} 19. Ree1 {[%emt 0:01:40]} Bf6 {[%emt 0:04:37]} 20. Nf3 {[%emt 0:07:05]} Nxf3+ {[%emt 0:04:46]} 21. Qxf3 {[%emt 0:03:11]} Bxb2 {[%emt 0:01:07]} 22. Rxb2 {[%emt 0:00:03]} Rfd8 {[%emt 0:01:28]} 23. Rbb1 {[%emt 0:03:43]} Rd3 {[%emt 0:02:24]} 24. Re3 {[%emt 0:11:01]} Raxa3 {[%emt 0:01:31]} 25. Bf1 {[%emt 0:00:35]} Rxe3 {[%emt 0:00:38]} 26. Qf4 {[%emt 0:05:50]} e5 {[%emt 0:03:13]} 27. Qg4 {[%emt 0:03:13]} f5 {[%emt 0:00:58]} 1-0

[Event "POL-chT 2nd League Juniors 2020"]
[Site "Sypniewo"]
[Date "2020.10.26"]
[Round "5.22"]
[White "Rumniak, Aleksy"]
[Black "Suszczynski, Dominik"]
[Result "1/2-1/2"]
[ECO "B90"]
[WhiteElo "1117"]
[BlackElo "1241"]
[Annotator "NA RC"]
[PlyCount "85"]
[EventDate "2020.10.23"]
[EventType "team-tourn"]
[EventCountry "POL"]
[SourceTitle "playchess.com"]
[Source "ChessBase"]
[SourceQuality "1"]
[TimeControl "5400+30"]

1. e4 {[%emt 0:00:00]} c5 {[%emt 0:00:00]} 2. Nf3 {[%emt 0:00:29]} d6 {[%emt 0:00:51]} 3. d4 {[%emt 0:01:23]} cxd4 {[%emt 0:00:06]} 4. Nxd4 {[%emt 0:00:07]} Nf6 {[%emt 0:00:33]} 5. Nc3 {[%emt 0:01:25]} a6 {[%emt 0:02:19]} 6. Be3 {[%emt 0:04:43]} e6 {[%emt 0:02:35]} 7. f3 {[%emt 0:05:24]} Be7 {[%emt 0:03:51]} 8. Qd2 {[%emt 0:01:50]} Qc7 {[%emt 0:06:18]} 9. Be2 {[%emt 0:03:21]} b5 {[%emt 0:05:30]} 10. O-O {[%emt 0:11:50]} Bb7 {[%emt 0:04:42]} 11. Rad1 {[%emt 0:13:20]} d5 {[%emt 0:04:39]} 12. exd5 {[%emt 0:04:34]} Nxd5 {[%emt 0:00:12]} 13. Nxd5 {[%emt 0:00:25]} Bxd5 {[%emt 0:00:09]} 14. f4 {[%emt 0:11:07]} Bb7 {[%emt 0:08:02]} 15. Bf3 {[%emt 0:01:13]} Nc6 {[%emt 0:02:44]} 16. Nxc6 {[%emt 0:03:06]} Bxc6 {[%emt 0:00:07]} 17. Bxc6+ {[%emt 0:00:15]} Qxc6 {[%emt 0:00:03]} 18. c3 {[%emt 0:07:01]} Rd8 {[%emt 0:01:54]} 19. Qe2 {[%emt 0:01:37]} O-O {[%emt 0:02:02]} 20. Bd4 {[%emt 0:15:58]} Bc5 {[%emt 0:06:00]} 21. Qe5 {[%emt 0:00:47]} Bxd4+ {[%emt 0:00:20]} 22. Rxd4 {[%emt 0:00:10]} Qb6 {[%emt 0:01:24]} 23. Rfd1 {[%emt 0:02:15]} Rd5 {[%emt 0:00:17]} 24. Qe4 {[%emt 0:01:14]} Rfd8 {[%emt 0:00:55]} 25. Kf1 {[%emt 0:00:52]} Rxd4 {[%emt 0:02:04]} 26. Rxd4 {[%emt 0:00:07]} Rxd4 {[%emt 0:00:06]} 27. Qxd4 {[%emt 0:00:02]} Qxd4 {[%emt 0:00:20]} 28. cxd4 {[%emt 0:00:07]} Kf8 {[%emt 0:00:09]} 29. Ke2 {[%emt 0:00:08]} Ke7 {[%emt 0:00:19]} 30. Ke3 {[%emt 0:04:05]} Kd6 {[%emt 0:00:44]} 31. Ke4 {[%emt 0:00:46]} f5+ {[%emt 0:00:09]} 32. Ke3 {[%emt 0:00:10]} Kd5 {[%emt 0:00:05]} 33. Kd3 {[%emt 0:00:10]} a5 {[%emt 0:03:22]} 34. h3 {[%emt 0:03:36]} h5 {[%emt 0:00:07]} 35. h4 {[%emt 0:00:11]} g6 {[%emt 0:00:23]} 36. g3 {[%emt 0:00:42]} a4 {[%emt 0:00:33]} 37. b3 {[%emt 0:00:15]} a3 {[%emt 0:00:36]} 38. Ke3 {[%emt 0:01:04]} Kc6 {[%emt 0:00:41]} 39. Kd2 {[%emt 0:01:16]} Kb6 {[%emt 0:01:11]} 40. Kd3 {[%emt 0:00:55]} Kc6 {[%emt 0:00:30]} 41. Kc3 {[%emt 0:00:51]} Kd5 {[%emt 0:00:14]} 42. Kd3 {[%emt 0:00:51]} b4 {[%emt 0:00:08]} 43. Ke3 {[%emt 0:00:11]} 1/2-1/2

[Event "POL-chT 2nd League Juniors 2020"]
[Site "Sypniewo"]
[Date "2020.10.26"]
[Round "5.23"]
[White "Wasala, Wiktoria"]
[Black "Matyjasek, Michalina"]
[Result "0-1"]
[ECO "B23"]
[WhiteElo "1458"]
[BlackElo "1477"]
[Annotator "NA RC"]
[PlyCount "76"]
[EventDate "2020.10.23"]
[EventType "team-tourn"]
[EventCountry "POL"]
[SourceTitle "playchess.com"]
[Source "ChessBase"]
[SourceQuality "1"]
[TimeControl "5400+30"]

1. e4 {[%emt 0:00:00]} c5 {[%emt 0:00:00]} 2. Nc3 {[%emt 0:00:00]} Nc6 {[%emt 0:00:00]} 3. f4 {[%emt 0:00:00]} g6 {[%emt 0:00:05]} 4. Nf3 {[%emt 0:00:00]} Bg7 {[%emt 0:00:10]} 5. d3 {[%emt 0:00:29]} d6 {[%emt 0:02:01]} 6. Be2 {[%emt 0:01:45]} Nf6 {[%emt 0:02:50]} 7. O-O {[%emt 0:00:50]} O-O {[%emt 0:01:28]} 8. Kh1 {[%emt 0:04:12]} Rb8 {[%emt 0:05:28]} 9. Be3 {[%emt 0:02:40]} Ng4 {[%emt 0:08:32]} 10. Bg1 {[%emt 0:01:33]} b5 {[%emt 0:03:16]} 11. h3 {[%emt 0:27:30]} b4 {[%emt 0:13:55]} 12. Nd5 {[%emt 0:02:15]} e6 {[%emt 0:09:55]} 13. Ne3 {[%emt 0:08:04]} Nxe3 {[%emt 0:02:16]} 14. Bxe3 {[%emt 0:02:52]} Bxb2 {[%emt 0:01:18]} 15. Rb1 {[%emt 0:00:04]} Bg7 {[%emt 0:01:53]} 16. d4 {[%emt 0:05:48]} Qa5 {[%emt 0:05:09]} 17. c3 {[%emt 0:08:06]} bxc3 {[%emt 0:05:28]} 18. Rxb8 {[%emt 0:00:54]} Nxb8 {[%emt 0:00:47]} 19. dxc5 {[%emt 0:04:33]} dxc5 {[%emt 0:00:51]} 20. Qb3 {[%emt 0:01:01]} Ba6 {[%emt 0:06:30]} 21. Bc4 {[%emt 0:03:12]} Nc6 {[%emt 0:03:00]} 22. Bxa6 {[%emt 0:07:46]} Qxa6 {[%emt 0:00:19]} 23. Rd1 {[%emt 0:00:11]} Rb8 {[%emt 0:02:43]} 24. Qc2 {[%emt 0:00:55]} Rb2 {[%emt 0:02:45]} 25. Qc1 {[%emt 0:01:36]} c2 {[%emt 0:00:41]} 26. Rd2 {[%emt 0:02:19]} Rb1 {[%emt 0:00:26]} 27. Rxc2 {[%emt 0:00:10]} Rxc1+ {[%emt 0:00:07]} 28. Rxc1 {[%emt 0:00:05]} c4 {[%emt 0:01:26]} 29. e5 {[%emt 0:00:32]} Qa3 {[%emt 0:02:21]} 30. Bd2 {[%emt 0:01:02]} Qxa2 {[%emt 0:00:44]} 31. Bc3 {[%emt 0:00:17]} Bf8 {[%emt 0:01:07]} 32. Ng5 {[%emt 0:00:45]} h6 {[%emt 0:01:24]} 33. Ne4 {[%emt 0:00:09]} Bb4 {[%emt 0:03:11]} 34. Nf6+ {[%emt 0:00:49]} Kf8 {[%emt 0:02:26]} 35. Ra1 {[%emt 0:01:04]} Qf2 {[%emt 0:01:15]} 36. Bxb4+ {[%emt 0:00:35]} Nxb4 {[%emt 0:00:16]} 37. Rd1 {[%emt 0:00:07]} Nd3 {[%emt 0:00:35]} 38. Rb1 {[%emt 0:02:43]} Nb2 {[%emt 0:01:31]} 0-1

[Event "POL-chT 2nd League Juniors 2020"]
[Site "Sypniewo"]
[Date "2020.10.27"]
[Round "6.2"]
[White "Zniszczol, Wiktoria"]
[Black "Szuber, Dawid"]
[Result "0-1"]
[ECO "B23"]
[WhiteElo "1620"]
[BlackElo "1496"]
[Annotator "NA RC"]
[PlyCount "88"]
[EventDate "2020.10.23"]
[EventType "team-tourn"]
[EventCountry "POL"]
[SourceTitle "playchess.com"]
[Source "ChessBase"]
[SourceQuality "1"]
[TimeControl "5400+30"]

1. e4 {[%emt 0:00:00]} c5 {[%emt 0:00:00]} 2. Nc3 {[%emt 0:00:00]} e6 {[%emt 0:00:00]} 3. f4 {[%emt 0:00:00]} a6 4. g3 {[%emt 0:00:37]} d5 {[%emt 0:01:25]} 5. d3 {[%emt 0:00:55]} Nc6 {[%emt 0:01:27]} 6. Bg2 {[%emt 0:00:39]} Nf6 {[%emt 0:00:56]} 7. Nh3 {[%emt 0:06:54]} Be7 {[%emt 0:04:58]} 8. O-O {[%emt 0:00:06]} O-O {[%emt 0:03:35]} 9. Nf2 {[%emt 0:14:06]} b5 {[%emt 0:06:18]} 10. Bd2 {[%emt 0:00:37]} Bb7 {[%emt 0:01:08]} 11. g4 {[%emt 0:10:14]} d4 {[%emt 0:09:05]} 12. Ne2 {[%emt 0:01:55]} e5 {[%emt 0:01:13]} 13. f5 {[%emt 0:08:44]} Nd7 {[%emt 0:01:51]} 14. Nh3 {[%emt 0:03:21]} f6 {[%emt 0:01:18]} 15. Rf3 {[%emt 0:10:26]} c4 {[%emt 0:04:57]} 16. a3 {[%emt 0:01:15]} Nc5 {[%emt 0:07:28]} 17. Nc1 {[%emt 0:05:04]} Na4 {[%emt 0:05:17]} 18. b3 {[%emt 0:03:25]} Nb2 {[%emt 0:03:38]} 19. Qe1 {[%emt 0:00:48]} c3 {[%emt 0:00:41]} 20. Bxc3 {[%emt 0:00:48]} dxc3 {[%emt 0:01:31]} 21. Kh1 {[%emt 0:14:10]} b4 {[%emt 0:03:48]} 22. a4 {[%emt 0:00:20]} Nd4 {[%emt 0:00:40]} 23. Rf2 {[%emt 0:00:07]} Bc5 {[%emt 0:04:21]} 24. Bf1 {[%emt 0:02:43]} Rc8 {[%emt 0:02:16]} 25. Rg2 Qe7 {[%emt 0:07:25]} 26. Qg3 {[%emt 0:03:04]} Bd6 {[%emt 0:14:15]} 27. Ng1 {[%emt 0:01:02]} Kh8 {[%emt 0:01:24]} 28. Nf3 {[%emt 0:01:20]} g6 {[%emt 0:02:29]} 29. Nxd4 {[%emt 0:00:06]} exd4 {[%emt 0:00:03]} 30. Qf3 {[%emt 0:01:54]} Qe5 {[%emt 0:01:25]} 31. Ne2 {[%emt 0:00:49]} gxf5 {[%emt 0:01:06]} 32. gxf5 {[%emt 0:00:25]} Rg8 {[%emt 0:00:51]} 33. Rf2 {[%emt 0:00:20]} Rg5 {[%emt 0:01:14]} 34. Bh3 {[%emt 0:00:46]} Rcg8 {[%emt 0:00:39]} 35. Rg1 {[%emt 0:03:43]} Bc6 {[%emt 0:02:17]} 36. Rgf1 {[%emt 0:02:09]} Nxa4 {[%emt 0:03:50]} 37. bxa4 {[%emt 0:02:15]} Bxa4 {[%emt 0:00:01]} 38. Nc1 {[%emt 0:00:24]} a5 {[%emt 0:01:07]} 39. Nb3 {[%emt 0:00:57]} Bc6 {[%emt 0:01:13]} 40. Re1 {[%emt 0:02:18]} a4 {[%emt 0:00:45]} 41. Nc1 {[%emt 0:00:13]} Rb8 {[%emt 0:00:23]} 42. Bg4 {[%emt 0:00:43]} b3 {[%emt 0:00:41]} 43. cxb3 {[%emt 0:00:22]} axb3 {[%emt 0:00:26]} 44. Nxb3 {[%emt 0:01:14]} Rxb3 {[%emt 0:00:40]} 0-1

[Event "POL-chT 2nd League Juniors 2020"]
[Site "Sypniewo"]
[Date "2020.10.27"]
[Round "6.3"]
[White "Bochenek, Ryszard"]
[Black "Karut, Kacper"]
[Result "0-1"]
[ECO "B20"]
[WhiteElo "1445"]
[BlackElo "1657"]
[Annotator "NA RC"]
[PlyCount "58"]
[EventDate "2020.10.23"]
[EventType "team-tourn"]
[EventCountry "POL"]
[SourceTitle "playchess.com"]
[Source "ChessBase"]
[SourceQuality "1"]
[TimeControl "5400+30"]

1. e4 {[%emt 0:00:02]} c5 {[%emt 0:00:00]} 2. b3 {[%emt 0:00:04]} g6 {[%emt 0:00:00]} 3. Bb2 {[%emt 0:00:07]} Nf6 {[%emt 0:00:00]} 4. Nc3 Bg7 {[%emt 0:00:00]} 5. e5 {[%emt 0:13:28]} Nh5 {[%emt 0:00:51]} 6. Ne4 {[%emt 0:01:22]} Qc7 {[%emt 0:10:00]} 7. Nf3 {[%emt 0:05:19]} Nc6 {[%emt 0:02:04]} 8. Nxc5 {[%emt 0:11:37]} Nxe5 {[%emt 0:02:49]} 9. d4 {[%emt 0:00:38]} Nxf3+ {[%emt 0:03:48]} 10. Qxf3 {[%emt 0:01:30]} O-O {[%emt 0:03:22]} 11. O-O-O {[%emt 0:03:47]} Nf6 {[%emt 0:18:39]} 12. Re1 {[%emt 0:08:33]} d6 {[%emt 0:03:20]} 13. Nd3 {[%emt 0:05:59]} Bf5 {[%emt 0:07:03]} 14. Qe2 {[%emt 0:08:13]} Rac8 {[%emt 0:06:06]} 15. Kb1 {[%emt 0:09:57]} Ne4 {[%emt 0:13:08]} 16. c4 {[%emt 0:03:01]} Nf6 {[%emt 0:08:14]} 17. f3 Qa5 {[%emt 0:05:27]} 18. Qd1 {[%emt 0:05:08]} Rfe8 {[%emt 0:04:14]} 19. g4 {[%emt 0:01:48]} Bxd3+ {[%emt 0:00:57]} 20. Bxd3 {[%emt 0:00:14]} e5 {[%emt 0:00:37]} 21. d5 {[%emt 0:01:38]} a6 {[%emt 0:02:16]} 22. h4 {[%emt 0:00:43]} b5 {[%emt 0:01:02]} 23. h5 {[%emt 0:01:44]} bxc4 {[%emt 0:00:47]} 24. bxc4 {[%emt 0:00:10]} Rb8 {[%emt 0:00:50]} 25. hxg6 {[%emt 0:02:49]} hxg6 {[%emt 0:02:29]} 26. Ka1 {[%emt 0:00:37]} Rxb2 {[%emt 0:02:08]} 27. Kxb2 {[%emt 0:01:09]} Rb8+ {[%emt 0:00:08]} 28. Kc2 {[%emt 0:01:41]} Qxa2+ {[%emt 0:00:18]} 29. Kc3 {[%emt 0:00:11]} Qb2# {[%emt 0:00:05]} 0-1

[Event "POL-chT 2nd League Juniors 2020"]
[Site "Sypniewo"]
[Date "2020.10.27"]
[Round "6.3"]
[White "Jendrowiak, Maciej"]
[Black "Wieckowski, Michal"]
[Result "1/2-1/2"]
[ECO "A81"]
[WhiteElo "1382"]
[BlackElo "1494"]
[Annotator "NA RC"]
[PlyCount "64"]
[EventDate "2020.10.23"]
[EventType "team-tourn"]
[EventCountry "POL"]
[SourceTitle "playchess.com"]
[Source "ChessBase"]
[SourceQuality "1"]
[TimeControl "5400+30"]

1. d4 {[%emt 0:00:07]} f5 {[%emt 0:00:00]} 2. g3 {[%emt 0:00:44]} g6 {[%emt 0:00:08]} 3. Bg2 {[%emt 0:00:38]} Bg7 {[%emt 0:00:20]} 4. Nf3 {[%emt 0:00:59]} Nf6 {[%emt 0:01:15]} 5. O-O {[%emt 0:03:25]} O-O {[%emt 0:01:02]} 6. Nbd2 {[%emt 0:02:36]} d6 {[%emt 0:07:48]} 7. Re1 {[%emt 0:02:45]} Qe8 {[%emt 0:12:14]} 8. e4 {[%emt 0:02:51]} fxe4 {[%emt 0:01:20]} 9. Nxe4 {[%emt 0:00:53]} Nxe4 {[%emt 0:01:57]} 10. Rxe4 Bf5 11. Rh4 {[%emt 0:03:05]} Nc6 {[%emt 0:16:47]} 12. c3 {[%emt 0:00:32]} Nd8 {[%emt 0:20:50]} 13. Be3 {[%emt 0:04:02]} c6 {[%emt 0:02:52]} 14. d5 {[%emt 0:02:04]} c5 {[%emt 0:02:58]} 15. Qd2 {[%emt 0:01:23]} Nf7 {[%emt 0:01:45]} 16. Ng5 {[%emt 0:02:49]} Nxg5 {[%emt 0:00:18]} 17. Bxg5 {[%emt 0:00:15]} Bf6 {[%emt 0:14:11]} 18. Re1 {[%emt 0:02:32]} Qf7 {[%emt 0:00:20]} 19. Bxf6 {[%emt 0:22:57]} exf6 {[%emt 0:00:11]} 20. Be4 {[%emt 0:01:53]} Bd7 {[%emt 0:03:11]} 21. Rf4 {[%emt 0:04:20]} Rae8 {[%emt 0:01:42]} 22. c4 {[%emt 0:04:52]} Re5 {[%emt 0:02:39]} 23. Bc2 {[%emt 0:01:59]} Qe7 {[%emt 0:05:49]} 24. Rfe4 {[%emt 0:07:13]} Bf5 {[%emt 0:01:22]} 25. Rxe5 {[%emt 0:00:16]} fxe5 {[%emt 0:00:04]} 26. f4 {[%emt 0:03:26]} Bxc2 {[%emt 0:01:11]} 27. Qxc2 {[%emt 0:00:08]} Qf6 {[%emt 0:00:27]} 28. Rf1 {[%emt 0:03:18]} Re8 {[%emt 0:00:24]} 29. Qe4 {[%emt 0:01:07]} Qf5 {[%emt 0:00:29]} 30. Re1 {[%emt 0:00:48]} Qf6 {[%emt 0:00:37]} 31. Rf1 Qf5 32. Qxf5 gxf5 1/2-1/2

[Event "POL-chT 2nd League Juniors 2020"]
[Site "Sypniewo"]
[Date "2020.10.27"]
[Round "6.4"]
[White "Leszczewicz, Karol"]
[Black "Rzepka, Marcin"]
[Result "1-0"]
[ECO "A41"]
[WhiteElo "1267"]
[BlackElo "1294"]
[Annotator "NA"]
[PlyCount "135"]
[EventDate "2020.10.23"]
[EventType "team-tourn"]
[EventCountry "POL"]
[SourceTitle "playchess.com"]
[Source "ChessBase"]
[SourceQuality "1"]
[TimeControl "5400+30"]

1. d4 d6 {[%emt 0:00:00]} 2. Nf3 f5 3. c4 {[%emt 0:06:56]} Nf6 {[%emt 0:03:03]} 4. Nc3 {[%emt 0:00:51]} g6 {[%emt 0:01:20]} 5. Bg5 {[%emt 0:01:10]} Bg7 {[%emt 0:02:21]} 6. Bxf6 {[%emt 0:01:38]} Bxf6 {[%emt 0:01:42]} 7. e4 {[%emt 0:03:23]} O-O {[%emt 0:09:42]} 8. Be2 {[%emt 0:08:31]} Nc6 9. O-O {[%emt 0:07:46]} e6 {[%emt 0:16:05]} 10. Re1 {[%emt 0:13:30]} a6 {[%emt 0:05:23]} 11. Bf1 {[%emt 0:06:15]} Bg7 {[%emt 0:07:02]} 12. exf5 {[%emt 0:06:01]} Rxf5 {[%emt 0:07:20]} 13. Qd2 {[%emt 0:11:38]} Qf8 {[%emt 0:13:44]} 14. d5 {[%emt 0:06:49]} Ne5 {[%emt 0:09:35]} 15. Nxe5 {[%emt 0:03:16]} Bxe5 {[%emt 0:00:48]} 16. dxe6 {[%emt 0:06:01]} Bxe6 {[%emt 0:02:47]} 17. Ne4 {[%emt 0:03:59]} Bf4 {[%emt 0:04:49]} 18. Qc3 {[%emt 0:02:01]} Bd7 {[%emt 0:05:05]} 19. h3 {[%emt 0:02:50]} Be5 {[%emt 0:01:37]} 20. Qd2 {[%emt 0:00:16]} Bc6 {[%emt 0:02:51]} 21. Ng3 {[%emt 0:02:00]} Rf7 {[%emt 0:01:23]} 22. c5 {[%emt 0:00:11]} Qg7 {[%emt 0:01:04]} 23. Bc4 {[%emt 0:00:42]} d5 {[%emt 0:01:08]} 24. Bxd5 {[%emt 0:00:03]} Bxd5 {[%emt 0:00:21]} 25. Qxd5 {[%emt 0:00:09]} Bxb2 {[%emt 0:01:23]} 26. Rab1 {[%emt 0:00:07]} c6 {[%emt 0:00:39]} 27. Qb3 {[%emt 0:00:27]} Bd4 {[%emt 0:01:07]} 28. Re2 {[%emt 0:02:23]} Bxc5 {[%emt 0:00:54]} 29. Rbe1 {[%emt 0:00:09]} Raf8 {[%emt 0:00:21]} 30. Ne4 {[%emt 0:00:19]} Be7 {[%emt 0:00:48]} 31. Qxb7 {[%emt 0:00:52]} a5 {[%emt 0:00:33]} 32. Qxc6 {[%emt 0:00:22]} Bb4 {[%emt 0:00:29]} 33. Rd1 {[%emt 0:00:48]} Kh8 {[%emt 0:00:14]} 34. Rf1 {[%emt 0:00:26]} Kg8 {[%emt 0:00:17]} 35. Ng5 {[%emt 0:00:11]} Qf6 {[%emt 0:00:34]} 36. Qd5 {[%emt 0:00:38]} Qf5 {[%emt 0:00:49]} 37. Re5 {[%emt 0:00:22]} Qd7 {[%emt 0:00:34]} 38. Qb3 {[%emt 0:00:25]} Qb7 {[%emt 0:00:33]} 39. Nxf7 {[%emt 0:00:12]} Qxf7 {[%emt 0:00:03]} 40. Qxf7+ {[%emt 0:00:20]} Rxf7 {[%emt 0:00:08]} 41. a3 {[%emt 0:00:20]} Bxa3 {[%emt 0:00:31]} 42. Rxa5 {[%emt 0:00:07]} Bf8 {[%emt 0:00:10]} 43. Rfa1 {[%emt 0:00:24]} Bb4 {[%emt 0:00:33]} 44. Ra8+ {[%emt 0:00:05]} Bf8 {[%emt 0:00:05]} 45. R1a7 {[%emt 0:01:48]} Rf5 {[%emt 0:00:53]} 46. Rd7 {[%emt 0:00:10]} Rb5 {[%emt 0:01:25]} 47. Rc8 {[%emt 0:00:40]} Rb1+ {[%emt 0:00:15]} 48. Kh2 {[%emt 0:00:06]} Rb2 {[%emt 0:00:12]} 49. f3 {[%emt 0:00:29]} Rb6 {[%emt 0:00:03]} 50. f4 {[%emt 0:02:22]} Rf6 {[%emt 0:00:17]} 51. Kg3 {[%emt 0:00:09]} Ra6 {[%emt 0:01:51]} 52. Rdd8 {[%emt 0:02:01]} Rf6 {[%emt 0:00:08]} 53. Rd7 {[%emt 0:01:38]} Ra6 {[%emt 0:00:33]} 54. Rcc7 {[%emt 0:01:34]} h6 {[%emt 0:00:20]} 55. Rc8 {[%emt 0:00:16]} Rb6 {[%emt 0:00:16]} 56. Rdd8 {[%emt 0:00:09]} Rf6 {[%emt 0:00:06]} 57. Kg4 {[%emt 0:00:14]} Kg7 {[%emt 0:01:05]} 58. Rxf8 {[%emt 0:00:30]} Rxf8 {[%emt 0:00:06]} 59. Rxf8 {[%emt 0:00:04]} Kxf8 {[%emt 0:00:02]} 60. f5 {[%emt 0:00:16]} Kf7 {[%emt 0:01:57]} 61. fxg6+ {[%emt 0:01:13]} Kxg6 {[%emt 0:00:05]} 62. h4 {[%emt 0:00:22]} h5+ {[%emt 0:00:50]} 63. Kf4 {[%emt 0:00:07]} Kf6 {[%emt 0:00:13]} 64. g3 {[%emt 0:00:08]} Kg6 {[%emt 0:00:41]} 65. Ke5 {[%emt 0:00:07]} Kg7 {[%emt 0:00:36]} 66. Kf5 {[%emt 0:00:19]} Kh6 {[%emt 0:00:04]} 67. Kf6 {[%emt 0:00:06]} Kh7 {[%emt 0:00:05]} 68. Kg5 {[%emt 0:00:04]} 1-0